Workbook

Sheet P&L
B2: < Reset | H2: P&L
H3: SPOT US EQUITY
C5: =YEAR(TODAY())-4 -> 2019 | D5: =YEAR(TODAY())-3 -> 2020 | E5: =YEAR(TODAY())-2 -> 2021 | F5: ="1Q"&RIGHT(YEAR(TODAY())-1,2) -> 1Q22 | G5: ="2Q"&RIGHT(YEAR(TODAY())-1,2) -> 2Q22 | H5: ="3Q"&RIGHT(YEAR(TODAY())-1,2) -> 3Q22 | I5: ="4Q"&RIGHT(YEAR(TODAY())-1,2) -> 4Q22 | J5: =YEAR(TODAY())-1 -> 2022 | K5: =IF(MONTH(TODAY())/3>1,"1Q"&RIGHT(YEAR(TODAY()),2),"1Q"&RIGHT(YEAR(TODAY()),2)&"E") -> 1Q23 | L5: =IF(MONTH(TODAY())/3>2,"2Q"&RIGHT(YEAR(TODAY()),2),"2Q"&RIGHT(YEAR(TODAY()),2)&"E") -> 2Q23 | M5: =IF(MONTH(TODAY())/3>3,"3Q"&RIGHT(YEAR(TODAY()),2),"3Q"&RIGHT(YEAR(TODAY()),2)&"E") -> 3Q23 | N5: =IF(MONTH(TODAY())/3>4,"4Q"&RIGHT(YEAR(TODAY()),2),"4Q"&RIGHT(YEAR(TODAY()),2)&"E") -> 4Q23E | O5: =YEAR(TODAY())&"E" -> 2023E | P5: =YEAR(TODAY())+1&"E" -> 2024E | Q5: =YEAR(TODAY())+2&"E" -> 2025E
B6: Total Revenue | C6: 6764 | D6: 7880 | E6: 9668 | F6: 2661 | G6: 2864 | H6: 3036 | I6: 3166 | J6: =SUM(F6:I6) -> 11727 | K6: 3042 | L6: 3177 | M6: 3337 | N6: 3682 | O6: =SUM(K6:N6) -> 13238 | P6: 15829 | Q6: 17822
B7: YoY Growth | D7: =D6/C6-1 -> 0.1649911295 | E7: =E6/D6-1 -> 0.2269035533 | J7: =J6/E6-1 -> 0.2129706247 | K7: 0.1431792559 | L7: 0.1092877095 | M7: 0.09914361001 | N7: 0.1629816804 | O7: 0.1288479577 | P7: =P6/O6-1 -> 0.1957244297 | Q7: =Q6/P6-1 -> 0.1259081433
R8: BEst
B10: Cost of Revenue | C10: 5042 | D10: 5865 | E10: 7077 | F10: 1990 | G10: 2160 | H10: 2286 | I10: 2365 | J10: =SUM(F10:I10) -> 8801 | K10: 2276 | L10: 2411 | M10: 2471 | N10: 2706 | O10: =SUM(K10:N10) -> 9864 | P10: 11558 | Q10: 12872
B11: Gross Profit | C11: =C6-C10 -> 1722 | D11: 2015 | E11: 2591 | F11: 671 | G11: 704 | H11: 750 | I11: 801 | J11: 2926 | K11: 766 | L11: 766 | M11: 866 | N11: 976 | O11: 3374 | P11: 4271 | Q11: 4950
R12: BEst
B13: As % of sales | C13: =C11/C6 -> 0.2545830869 | D13: =D11/D6 -> 0.2557106599 | E13: 0.2679975176 | F13: 0.2521608418 | G13: 0.2458100559 | H13: 0.2470355731 | I13: 0.2530006317 | J13: 0.2495096785 | K13: 0.251808021 | L13: 0.2411079635 | M13: 0.259514534 | N13: 0.2650733297 | O13: 0.2548723372 | P13: 0.2698212142 | Q13: 0.2777466053
O14: =O12/O8 ->  | P14: =P12/P8 ->  | R14: BEst
B16: Operating Expenses
B17: R&D | C17: 615 | D17: 837 | E17: 912 | F17: 250 | G17: 336 | H17: 386 | I17: 415 | J17: =SUM(F17:I17) -> 1387 | K17: 435 | L17: 453 | M17: 455 | N17: 455 | O17: =SUM(K17:N17) -> 1798 | P17: 1773 | Q17: 1996
B18: Sales & Marketing | C18: 826 | D18: 1029 | E18: 1135 | F18: 296 | G18: 391 | H18: 432 | I18: 453 | J18: 1572 | K18: 347 | L18: 399 | M18: 410 | N18: 434 | O18: 1590 | P18: 1694 | Q18: 1871
B19: General & Administratiive | C19: 354 | D19: 442 | E19: 450 | F19: 131 | G19: 171 | H19: 160 | I19: 164 | J19: 626 | K19: 140 | L19: 161 | M19: 152 | N19: 155 | O19: 608 | P19: 554 | Q19: 588
B20: Total Operating Expenses | C20: =SUM(C17:C19) -> 1795 | D20: =SUM(D17:D19) -> 2308 | E20: =SUM(E17:E19) -> 2497 | F20: =SUM(F17:F19) -> 677 | G20: 898 | H20: 978 | I20: 1032 | J20: 3585 | K20: 922 | L20: 1013 | M20: 1017 | N20: 1044 | O20: 3996 | P20: 4021 | Q20: 4455
B21: As % of sales | C21: =C20/C$6 -> 0.2653755174 | D21: 0.292893401 | E21: 0.2582747207 | F21: 0.2544156332 | G21: 0.313547486 | H21: 0.3221343874 | I21: 0.3259633607 | J21: 0.3057047838 | K21: 0.3030900723 | L21: 0.318854265 | M21: 0.3047647588 | N21: 0.2835415535 | O21: 0.3018582868 | P21: 0.254027418 | Q21: 0.2499719448
B22: Operating Income/Loss | C22: =C11-C20 -> -73 | D22: -293 | E22: 94 | F22: -6 | G22: -194 | H22: -228 | I22: -231 | J22: =SUM(F22:I22) -> -659 | K22: -156 | L22: -247 | M22: =M11-M20 -> -151 | N22: =N11-N20 -> -68 | O22: =SUM(K22:N22) -> -622 | P22: =P11-P20 -> 250 | Q22: =Q11-Q20 -> 495
B23: Other Adjustments, Income (Expenses) | C23: 0 | D23: 0 | E23: 0 | F23: 0 | G23: 20 | H23: 0 | I23: 0 | J23: =SUM(F23:I23) -> 20 | K23: 44 | L23: 135 | M23: 0 | N23: 0 | O23: =SUM(K23:N23) -> 179 | P23: 0 | Q23: 0
B24: Adj. Operating Income/Loss | C24: =SUM(C22:C23) -> -73 | D24: =SUM(D22:D23) -> -293 | E24: 94 | F24: -6 | G24: -174 | H24: -228 | I24: -231 | J24: =SUM(J22:J23) -> -639 | K24: -112 | L24: -112 | M24: -151 | N24: -68 | O24: =SUM(O22:O23) -> -443 | P24: 250 | Q24: 495
R25: BEst
B26: As % of sales | C26: =C24/C$6 -> -0.01079243051 | D26: =D24/D$6 -> -0.03718274112 | E26: =E24/E$6 -> 0.009722796856 | F26: =F24/F$6 -> -0.002254791432 | G26: =G24/G$6 -> -0.06075418994 | H26: =H24/H$6 -> -0.07509881423 | I26: =I24/I$6 -> -0.072962729 | J26: =J24/J$6 -> -0.05448963929 | K26: =K24/K$6 -> -0.03681788297 | L26: =L24/L$6 -> -0.0352533837 | M26: =M24/M$6 -> -0.04525022475 | N26: =N24/N$6 -> -0.01846822379 | O26: =O24/O$6 -> -0.03346426953 | P26: =P24/P$6 -> 0.0157937962 | Q26: =Q24/Q$6 -> 0.02777466053
O27: =O25/O$8 ->  | P27: =P25/P$8 ->  | R27: BEst
B29: Finance Income | C29: 275 | D29: 94 | E29: 246 | F29: 175 | G29: 118 | H29: 102 | I29: 26 | J29: =SUM(F29:I29) -> 421 | K29: 27 | L29: 33 | M29: 66.7 | N29: 74 | O29: =SUM(K29:N29) -> 200.7 | P29: 277 | Q29: 312
B30: Finance Costs | C30: -333 | D30: -510 | E30: -91 | F30: -14 | G30: -14 | H30: -18 | I30: -86 | J30: =SUM(F30:I30) -> -132 | K30: -77 | L30: -27 | M30: -18.2 | N30: -18 | O30: =SUM(K30:N30) -> -140.2 | P30: -147 | Q30: -154
B31: Share in earnings of associate | C31: 0 | D31: 0 | E31: 0 | F31: 0 | G31: 0 | H31: 0 | I31: 0 | J31: 0 | K31: 0 | L31: 0 | M31: 0 | N31: 0 | O31: =SUM(K31:N31) -> 0 | P31: 0 | Q31: 0
B32: Finance Net Income (Costs) | C32: =SUM(C29:C31) -> -58 | D32: =SUM(D29:D31) -> -416 | E32: 155 | F32: 161 | G32: 104 | H32: 84 | I32: -60 | J32: 289 | K32: =SUM(K29:K31) -> -50 | L32: =SUM(L29:L31) -> 6 | M32: =SUM(M29:M31) -> 48.5 | N32: =SUM(N29:N31) -> 56 | O32: =SUM(O29:O31) -> 60.5 | P32: =SUM(P29:P31) -> 130 | Q32: =SUM(Q29:Q31) -> 158
B34: EBT | C34: =C32+C22 -> -131 | D34: -709 | E34: 249 | F34: 155 | G34: -90 | H34: -144 | I34: -291 | J34: =SUM(F34:I34) -> -370 | K34: =K32+K22 -> -206 | L34: =L32+L22 -> -241 | M34: =M32+M22 -> -102.5 | N34: =N32+N22 -> -12 | O34: =O32+O22 -> -561.5 | P34: =P32+P22 -> 380 | Q34: 653
B35: Income Tax benefit (expense) | C35: -55 | D35: 128 | E35: -283 | F35: -24 | G35: -35 | H35: -22 | I35: 21 | J35: =SUM(F35:I35) -> -60 | K35: -19 | L35: -61 | M35: -1.4 | N35: -9 | O35: =SUM(K35:N35) -> -90.4 | P35: -69 | Q35: -117
B36: Tax Rate (%) | C36: =-C35/C34 -> -0.4198473282 | D36: 0.1805359661 | E36: 1.136546185 | F36: 0.1548387097 | G36: -0.3888888889 | H36: -0.1527777778 | I36: 0.07216494845 | J36: -0.1621621622 | K36: -0.09223300971 | L36: -0.2531120332 | M36: -0.01365853659 | N36: -0.75 | O36: -0.1609973286 | P36: 0.1815789474 | Q36: 0.1791730475
B37: Net Income (loss) attributable to owners of parent | C37: =C35+C34 -> -186 | D37: =D35+D34 -> -581 | E37: -34 | F37: 131 | G37: -125 | H37: -166 | I37: -270 | J37: =SUM(F37:I37) -> -430 | K37: =K35+K34 -> -225 | L37: -302 | M37: -103.9 | N37: -21 | O37: =SUM(K37:N37) -> -651.9 | P37: 311 | Q37: 536
B38: Fair Value Movements on Convertible Notes
B39: Net Income (loss) - Reported | C39: =SUM(C37:C38) -> -186 | D39: =SUM(D37:D38) -> -581 | E39: -34 | F39: 131 | G39: -125 | H39: -166 | I39: -270 | J39: -430 | K39: -225 | L39: -302 | M39: -103.9 | N39: -21 | O39: -651.9 | P39: 311 | Q39: 536
B40: Other Adjustments | C40: 122 | D40: 176 | E40: 223 | F40: 68 | G40: 125 | H40: 108 | I40: 100 | J40: =SUM(F40:I40) -> 401 | K40: 149 | L40: 232 | M40: 110.4 | N40: 99 | O40: =SUM(K40:N40) -> 590.4 | P40: 412 | Q40: 427.5
B41: Adj. Net Income (loss) | C41: =SUM(C39:C40) -> -64 | D41: =SUM(D39:D40) -> -405 | E41: 189 | F41: 199 | G41: 0 | H41: -58 | I41: -170 | J41: -29 | K41: -76 | L41: -70 | M41: 6.5 | N41: 78 | O41: -61.5 | P41: 723 | Q41: =SUM(Q39:Q40) -> 963.5
B43: Diluted Shares (m) | C43: 181 | D43: 187.6 | E43: 193.9 | F43: 197.1 | G43: 195.9 | H43: 196 | I43: 193.2 | J43: =AVERAGE(F43:I43) -> 195.55 | K43: 193.6 | L43: 194.4 | M43: 195.1 | N43: 195.8 | O43: =AVERAGE(K43:N43) -> 194.725 | P43: 194.7 | Q43: 194.56
B44: Dilluted EPS (€) | C44: =C39/C43 -> -1.027624309 | D44: =D39/D43 -> -3.097014925 | E44: -0.1753481176 | F44: 0.66463724 | G44: -0.6380806534 | H44: =H39/H43 -> -0.8469387755 | I44: -1.397515528 | J44: =SUM(F44:I44) -> -2.217897717 | K44: -1.162190083 | L44: -1.553497942 | M44: -0.5325474116 | N44: -0.1072522983 | O44: -3.347798177 | P44: 1.597329224 | Q44: 2.754934211
R45: BEst

Sheet DCF
G2: Discounted Cash Flow (DCF) | N2: Valuation by End of Year | P2: 2023
B3: < Reset < Save Bloom Data | O3: Current Share Price | P3: =IF($F$28<>"",$F$28,"") -> 160
G4: ='P&L'!H3 -> SPOT US EQUITY | O4: Equity Value Per Share | P4: =IF($C$35<>"",$C$35,"") -> 132.4345703
M5: Currently Under(Over)valued by | P5: =IF(G30<>"",G30,"") -> -0.1722839356
B7: (1) Calculating FCF | C7: =YEAR(TODAY())-1 -> 2022 | E7: =C7+1 -> 2023 | F7: =E7+1 -> 2024 | G7: 2025 | H7: 2026 | I7: 2027 | J7: 2028 | K7: 2029 | L7: 2030 | M7: 2031 | N7: 2032 | O7: 2033 | P7: Terminal
B8: Sales | C8: ='P&L'!J6 -> 11727 | E8: ='P&L'!O6 -> 13238 | F8: ='P&L'!P6 -> 15829 | G8: ='P&L'!Q6 -> 17822 | H8: =G8*(1+H9) -> 20138.86 | I8: =H8*(1+I9) -> 22756.9118 | J8: 25715.31033 | K8: 28543.99447 | L8: 31683.83386 | M8: 35169.05559 | N8: 39037.6517 | O8: 43331.79339
B9: Growth (%) | C9: ='P&L'!J7 -> 0.2129706247 | E9: ='P&L'!O7 -> 0.1288479577 | F9: ='P&L'!P7 -> 0.1957244297 | G9: ='P&L'!Q7 -> 0.1259081433 | H9: 0.13 | I9: 0.13 | J9: 0.13 | K9: 0.11 | L9: 0.11 | M9: 0.11 | N9: 0.11 | O9: 0.11
B10: Tax Rate | C10: ='P&L'!J36 -> -0.1621621622 | E10: ='P&L'!O36 -> -0.1609973286 | F10: ='P&L'!P36 -> 0.1815789474 | G10: ='P&L'!Q36 -> 0.1791730475 | H10: =G10 -> 0.1791730475 | I10: =H10 -> 0.1791730475 | J10: 0.1791730475 | K10: 0.1791730475 | L10: 0.1791730475 | M10: 0.1791730475 | N10: 0.1791730475 | O10: 0.1791730475
B11: Operating Profit | C11: ='P&L'!J24 -> -639 | E11: ='P&L'!O24 -> -443 | F11: ='P&L'!P24 -> 250 | G11: ='P&L'!Q24 -> 495 | H11: =H8*H12 -> 805.5544 | I11: =I8*I12 -> 1365.414708 | J11: 1800.071723 | K11: 2568.959502 | L11: 3168.383386 | M11: 3868.596115 | N11: 5074.894721 | O11: 6499.769008
B12: Operating Margin (as % of Sales) | C12: =C11/C8 -> -0.05448963929 | E12: =E11/E8 -> -0.03346426953 | F12: 0.0157937962 | G12: 0.02777466053 | H12: 0.04 | I12: 0.06 | J12: 0.07 | K12: 0.09 | L12: 0.1 | M12: 0.11 | N12: 0.13 | O12: 0.15
B13: Net Operating Prof. After Tax (NOPAT) | C13: =IF(C11>0,C11*(1-C10),C11*(1+C10)) -> -535.3783784 | E13: =IF(E11>0,E11*(1-E10),E11*(1+E10)) -> -371.6781834 | F13: 204.6052632 | G13: 406.3093415 | H13: 661.2207632 | I13: 1120.769194 | J13: 1477.547387 | K13: 2108.671199 | L13: 2600.694479 | M13: 3175.447959 | N13: 4165.610368 | O13: 5335.185587
A14: Balance Sheet | B14: + Depreciation (DA) | C14: 171 | E14: 181 | F14: 182 | G14: 211 | H14: 206 | I14: 186.89 | J14: 167.78 | K14: 148.67 | L14: 129.56 | M14: 110.45 | N14: 91.34 | O14: 72.23
B15: - CapEx | C15: 25 | E15: 14 | F15: 11 | G15: 12 | H15: 19.55 | I15: 27.1 | J15: 34.65 | K15: 42.2 | L15: 49.75 | M15: 57.3 | N15: 64.85 | O15: 72.4
B16: As % of sales | C16: =C15/C8 -> 0.002131832523 | E16: =E15/E8 -> 0.001057561565 | F16: 0.0006949270327 | G16: 0.0006733251038 | H16: 0.0009707600132 | I16: 0.001190846994 | J16: 0.001347446309 | K16: 0.001478419569 | L16: 0.001570201391 | M16: 0.001629273207 | N16: 0.001661216727 | O16: 0.001670828607
B17: - Change in Working Capital | C17: 191 | E17: 23 | F17: -178 | G17: -1 | H17: 0 | I17: 0 | J17: 0 | K17: 0 | L17: 0 | M17: 0 | N17: 0 | O17: 0
B18: = Free Cash Flow (FCF) | C18: =C13+C14-C15-C17 -> -580.3783784 | E18: =E13+E14-E15-E17 -> -227.6781834 | F18: 553.6052632 | G18: 606.3093415 | H18: 847.6707632 | I18: 1280.559194 | J18: 1610.677387 | K18: 2215.141199 | L18: 2680.504479 | M18: 3228.597959 | N18: 4192.100368 | O18: 5335.015587 | P18: =O18/N18*O18 -> 6789.530024
B21: (3) Terminal Value - Growth in Perpetuity Approach | E21: t+ | F21: =IF(E7=$P$2,1,IF(E7<$P$2,0,1)) -> 1 | G21: =IF(F7=$P$2,1,IF(F7<$P$2,0,F21+1)) -> 2 | H21: =IF(G7=$P$2,1,IF(G7<$P$2,0,G21+1)) -> 3 | I21: 4 | J21: 5 | K21: 6 | L21: 7 | M21: 8 | N21: 9 | O21: 10
B22: LT Growth Rate (G) | C22: 0.02 | E22: Discount Rate | F22: =(1+$L$36)^IF(F21<0,0,F21) -> 1.126173542 | G22: =(1+$L$36)^IF(G21<0,0,G21) -> 1.268266846 | H22: 1.428288566 | I22: 1.608500793 | J22: 1.811451036 | K22: 2.040008229 | L22: 2.297403292 | M22: 2.587274803 | N22: 2.913720428 | O22: 3.281354854 | P22: =(1+$L$36)^(O7-$E$7+1) -> 3.695375018
B23: FCF*(1+G) | C23: =P18*(1+C22) -> 6925.320625 | E23: PV of FCF | F23: =F18/F22 -> 491.5807756 | G23: 478.0613349 | H23: 593.4870468 | I23: 796.1197153 | J23: 889.1641868 | K23: 1085.849149 | L23: 1166.753999 | M23: 1247.875933 | N23: 1438.744887 | O23: 1625.857557
B24: Terminal Value (TV) in t+1 | C24: =C23/(L36-C22) -> 65226.42558
B25: PV of the TV | C25: =C24/P22 -> 17650.82712 | E25: Sum of PV | F25: =SUM(F23:O23) -> 9813.494586 | J25: (2) Calculating the WACC | L25: FINAL | M25: INPUT | N25: BLOOM
J26: Shareholder Equity (E) | L26: =IF(N26<>"...",N26,IF(M26<>"",M26,"")) -> 30178.3235 | M26: 30178.3235 | N26: =IFERROR(_xll.BDP($G$4,"CUR_MKT_CAP")/1000000,"...") -> ... | O26: CUR_MKT_CAP
B27: = Enterprise Value (EV) | C27: =C25+F25 -> 27464.3217 | F27: FINAL | G27: INPUT | H27: BLOOM | J27: Net Dept (D) | L27: =IF(N27<>"...",N27,IF(M27<>"",M27,"")) -> 1609 | M27: 1609 | N27: =IFERROR(-_xll.BDP($G$4,"Net_Debt"),"...") -> ... | O27: NET_DEPT
B28: TV as % of EV | C28: =C25/C27 -> 0.6426820698 | E28: Share Price | F28: =IF(H28<>"...",H28,IF(G28<>"",G28,"")) -> 160 | G28: 160 | H28: =IFERROR(_xll.BDP(G4,"PX_LAST"),"...") -> ... | J28: Capital Employed (V) E+D | L28: 31787.3235 | M28: =M26+M27 -> 31787.3235 | N28: =IFERROR(N26+N27,"...") -> ...
J29: Weight of Equity (We) E/V | L29: =IF(M29<>"...",M29,IF(N29<>"",N29,"")) -> 0.9493823379 | M29: =M26/M28 -> 0.9493823379 | N29: =IFERROR(_xll.BDP($G$4,"WACC_WEIGHT_OF_EQUITY")/100,"…") -> …
A30: find on Bal. Sheet | B30: - Net Debt | C30: 1673 | E30: Upside / (Downside) | G30: =C35/F28-1 -> -0.1722839356 | J30: Weight of Debt (Wd) D/V | L30: =IF(M30<>"...",M30,IF(N30<>"",N30,"")) -> 0.05061766209 | M30: =M27/M28 -> 0.05061766209 | N30: =IFERROR(_xll.BDP($G$4,"WACC_WEIGHT_OF_DEBT")/100,"…") -> …
B31: - Pension Provisions | C31: 3 | J31: Risk-Free Rate (10Y US) | L31: 0.04246261 | M31: 0.04246261 | N31: =IFERROR(_xll.BDP("GT 10 Govt","YAS_Bond_YLD")/100,"...") -> ... | O31: YAS_BOND_YLD
B32: - Minority Interests | C32: 0 | E32: Year | F32: Diluted Shares | J32: Risk Premium | L32: 0.0587046 | M32: 0.0587046 | N32: =IFERROR(_xll.BDP($G$4,"COUNTRY_RISK_PREMIUM")/100,"...") -> ... | O32: RISK_PREMIUM
B33: = Total Equity Value | C33: =C27-C30-C31-C32 -> 25788.3217 | E33: =YEAR(TODAY())-4 -> 2019 | F33: ='P&L'!C43 -> 181 | J33: Beta | L33: 1.480695367 | M33: 1.480695367 | N33: =IFERROR(_xll.BDP($G$4,"EQY_Beta"),"...") -> ... | O33: EQY_BETA
B34: # of Diluted Shares | C34: =_xlfn.IFNA(INDEX(F33:F39,MATCH(P2,E33:E39)),F40) -> 194.725 | E34: =YEAR(TODAY())-3 -> 2020 | F34: ='P&L'!D43 -> 187.6 | J34: Cost of Equity (CoE) | L34: 0.1293862392 | M34: =M31+M32*M33 -> 0.1293862392 | N34: =IFERROR(N31+N32*N33,"...") -> ...
B35: Equity Value | C35: =C33/C34 -> 132.4345703 | E35: =YEAR(TODAY())-2 -> 2021 | F35: ='P&L'!E43 -> 193.9 | J35: Cost of Debt (CoD) | L35: 0.06591635 | M35: 0.06591635 | N35: =IFERROR(_xll.BDP($G$4,"WACC_Cost_Debt")/100,"...") -> ... | O35: WACC_COST_DEBT
E36: =YEAR(TODAY())-1 -> 2022 | F36: ='P&L'!J43 -> 195.55 | J36: Weighted Average Cost of Capital (WACC) | L36: =L29*L34+L30*L35 -> 0.1261735418 | M36: =M29*M34+M30*M35 -> 0.1261735418 | N36: =IFERROR(N29*N34+N30*N35,"…") -> …
E37: =YEAR(TODAY()) -> 2023 | F37: ='P&L'!O43 -> 194.725
E38: =YEAR(TODAY())+1 -> 2024 | F38: ='P&L'!P43 -> 194.7
E39: =YEAR(TODAY())+2 -> 2025 | F39: ='P&L'!Q43 -> 194.56
E40: =IF(ISNUMBER(MATCH(P2,E33:E39,)),"Other",IF($P$2=0,"Other",$P$2)) -> Other

Sheet RV
F2: Relative Value (RV)
O3: Upside / (Downside) to Median | P3: =IFERROR($E$62,"…") -> -0.09111166347
F4: ='P&L'!$H$3 -> SPOT US EQUITY | O4: Upside / (Downside) to Average | P4: =IFERROR($E$61,"…") -> 0.1680939424
C6: ^Reset^ | D6: ^Save Bloom Data^
C7: TICKER (Input) | D7: SECURITY_NAME | E7: Share Price | F7: %YTD | G7: Market Cap (B) | I7: EV/sales | K7: EV/EBITDA | M7: EV/EBIT | O7: P/E
I8: =YEAR(TODAY()) -> 2023 | J8: =I8+1 -> 2024 | K8: 2023 | L8: =K8+1 -> 2024 | M8: 2023 | N8: =M8+1 -> 2024 | O8: 2023 | P8: =O8+1 -> 2024
E9: PX_LAST | F9: CHG_PCT_YTD_RT | G9: CUR_MKT_CAP | I9: EST_EV_THIS_YR_SALES | J9: EST_EV_NEXT_YR_SALES | K9: EST_EV_THIS_YR_EBITDA | L9: EST_EV_NEXT_YR_EBITDA | M9: BEST_CURRENT_EV_BEST_EBIT | N9: EXT_EV_NEXT_YR_EBIT | O9: EST_PE_CUR_YR | P9: EST_PE_NXT_YR
B10: BLOOM VALUES | C10: BILI US EQUITY | D10: =IFERROR(IF($C10<>"",_xll.BDP($C10,D$7),""),"#N/A BLOOM") -> #N/A BLOOM | E10: =IFERROR(IF($C10<>"",_xll.BDP($C10,E$9),""),"#N/A BLOOM") -> #N/A BLOOM | F10: =IFERROR(IF($C10<>"",_xll.BDP($C10,F$9)/100,""),"#N/A BLOOM") -> #N/A BLOOM | G10: =IFERROR(IF($C10<>"",_xll.BDP($C10,G$9)/1000000000,""),"#N/A BLOOM") -> #N/A BLOOM | I10: =IFERROR(IF($C10<>"",IF(_xll.BDP($C10,I$9)<>"#N/A N/A",_xll.BDP($C10,I$9),""),""),"#N/A BLOOM") -> #N/A BLOOM | J10: =IFERROR(IF($C10<>"",IF(_xll.BDP($C10,J$9)<>"#N/A N/A",_xll.BDP($C10,J$9),""),""),"#N/A BLOOM") -> #N/A BLOOM | K10: =IFERROR(IF($C10<>"",IF(_xll.BDP($C10,K$9)<>"#N/A N/A",_xll.BDP($C10,K$9),""),""),"#N/A BLOOM") -> #N/A BLOOM | L10: =IFERROR(IF($C10<>"",IF(_xll.BDP($C10,L$9)<>"#N/A N/A",_xll.BDP($C10,L$9),""),""),"#N/A BLOOM") -> #N/A BLOOM | M10: =IFERROR(IF($C10<>"",IF(_xll.BDP($C10,M$9)<>"#N/A N/A",_xll.BDP($C10,M$9),""),""),"#N/A BLOOM") -> #N/A BLOOM | N10: =IFERROR(IF($C10<>"",IF(_xll.BDP($C10,N$9)<>"#N/A N/A",_xll.BDP($C10,N$9),""),""),"#N/A BLOOM") -> #N/A BLOOM | O10: =IFERROR(IF($C10<>"",IF(_xll.BDP($C10,O$9)<>"#N/A N/A",_xll.BDP($C10,O$9),""),""),"#N/A BLOOM") -> #N/A BLOOM | P10: =IFERROR(IF($C10<>"",IF(_xll.BDP($C10,P$9)<>"#N/A N/A",_xll.BDP($C10,P$9),""),""),"#N/A BLOOM") -> #N/A BLOOM
C11: 136 HK EQUITY | D11: =IFERROR(IF($C11<>"",_xll.BDP($C11,D$7),""),"") ->  | E11: =IFERROR(IF($C11<>"",_xll.BDP($C11,E$7),""),"") ->  | F11: =IFERROR(IF($C11<>"",_xll.BDP($C11,F$7),""),"") ->  | G11: =IFERROR(IF($C11<>"",_xll.BDP($C11,G$7),""),"") ->  | I11: =IFERROR(IF($C11<>"",IF(_xll.BDP($C11,I$9)<>"#N/A N/A",_xll.BDP($C11,I$9),""),""),"") ->  | J11: =IFERROR(IF($C11<>"",IF(_xll.BDP($C11,J$9)<>"#N/A N/A",_xll.BDP($C11,J$9),""),""),"") ->  | K11: =IFERROR(IF($C11<>"",IF(_xll.BDP($C11,K$9)<>"#N/A N/A",_xll.BDP($C11,K$9),""),""),"") ->  | L11: =IFERROR(IF($C11<>"",IF(_xll.BDP($C11,L$9)<>"#N/A N/A",_xll.BDP($C11,L$9),""),""),"") ->  | M11: =IFERROR(IF($C11<>"",IF(_xll.BDP($C11,M$9)<>"#N/A N/A",_xll.BDP($C11,M$9),""),""),"") ->  | N11: =IFERROR(IF($C11<>"",IF(_xll.BDP($C11,N$9)<>"#N/A N/A",_xll.BDP($C11,N$9),""),""),"") ->  | O11: =IFERROR(IF($C11<>"",IF(_xll.BDP($C11,O$9)<>"#N/A N/A",_xll.BDP($C11,O$9),""),""),"") ->  | P11: =IFERROR(IF($C11<>"",IF(_xll.BDP($C11,P$9)<>"#N/A N/A",_xll.BDP($C11,P$9),""),""),"") -> 
C12: 9899 HK EQUITY | D12: =IFERROR(IF($C12<>"",_xll.BDP($C12,D$7),""),"") ->  | E12: =IFERROR(IF($C12<>"",_xll.BDP($C12,E$7),""),"") ->  | F12: =IFERROR(IF($C12<>"",_xll.BDP($C12,F$7),""),"") ->  | G12: =IFERROR(IF($C12<>"",_xll.BDP($C12,G$7),""),"") ->  | I12: =IFERROR(IF($C12<>"",IF(_xll.BDP($C12,I$9)<>"#N/A N/A",_xll.BDP($C12,I$9),""),""),"") ->  | J12: =IFERROR(IF($C12<>"",IF(_xll.BDP($C12,J$9)<>"#N/A N/A",_xll.BDP($C12,J$9),""),""),"") ->  | K12: =IFERROR(IF($C12<>"",IF(_xll.BDP($C12,K$9)<>"#N/A N/A",_xll.BDP($C12,K$9),""),""),"") ->  | L12: =IFERROR(IF($C12<>"",IF(_xll.BDP($C12,L$9)<>"#N/A N/A",_xll.BDP($C12,L$9),""),""),"") ->  | M12: =IFERROR(IF($C12<>"",IF(_xll.BDP($C12,M$9)<>"#N/A N/A",_xll.BDP($C12,M$9),""),""),"") ->  | N12: =IFERROR(IF($C12<>"",IF(_xll.BDP($C12,N$9)<>"#N/A N/A",_xll.BDP($C12,N$9),""),""),"") ->  | O12: =IFERROR(IF($C12<>"",IF(_xll.BDP($C12,O$9)<>"#N/A N/A",_xll.BDP($C12,O$9),""),""),"") ->  | P12: =IFERROR(IF($C12<>"",IF(_xll.BDP($C12,P$9)<>"#N/A N/A",_xll.BDP($C12,P$9),""),""),"") -> 
C13: DIDIY US EQUITY | D13: =IFERROR(IF($C13<>"",_xll.BDP($C13,D$7),""),"") ->  | E13: =IFERROR(IF($C13<>"",_xll.BDP($C13,E$7),""),"") ->  | F13: =IFERROR(IF($C13<>"",_xll.BDP($C13,F$7),""),"") ->  | G13: =IFERROR(IF($C13<>"",_xll.BDP($C13,G$7),""),"") ->  | I13: =IFERROR(IF($C13<>"",IF(_xll.BDP($C13,I$9)<>"#N/A N/A",_xll.BDP($C13,I$9),""),""),"") ->  | J13: =IFERROR(IF($C13<>"",IF(_xll.BDP($C13,J$9)<>"#N/A N/A",_xll.BDP($C13,J$9),""),""),"") ->  | K13: =IFERROR(IF($C13<>"",IF(_xll.BDP($C13,K$9)<>"#N/A N/A",_xll.BDP($C13,K$9),""),""),"") ->  | L13: =IFERROR(IF($C13<>"",IF(_xll.BDP($C13,L$9)<>"#N/A N/A",_xll.BDP($C13,L$9),""),""),"") ->  | M13: =IFERROR(IF($C13<>"",IF(_xll.BDP($C13,M$9)<>"#N/A N/A",_xll.BDP($C13,M$9),""),""),"") ->  | N13: =IFERROR(IF($C13<>"",IF(_xll.BDP($C13,N$9)<>"#N/A N/A",_xll.BDP($C13,N$9),""),""),"") ->  | O13: =IFERROR(IF($C13<>"",IF(_xll.BDP($C13,O$9)<>"#N/A N/A",_xll.BDP($C13,O$9),""),""),"") ->  | P13: =IFERROR(IF($C13<>"",IF(_xll.BDP($C13,P$9)<>"#N/A N/A",_xll.BDP($C13,P$9),""),""),"") -> 
C14: DEEZR FP EQUITY | D14: =IFERROR(IF($C14<>"",_xll.BDP($C14,D$7),""),"") ->  | E14: =IFERROR(IF($C14<>"",_xll.BDP($C14,E$7),""),"") ->  | F14: =IFERROR(IF($C14<>"",_xll.BDP($C14,F$7),""),"") ->  | G14: =IFERROR(IF($C14<>"",_xll.BDP($C14,G$7),""),"") ->  | I14: =IFERROR(IF($C14<>"",IF(_xll.BDP($C14,I$9)<>"#N/A N/A",_xll.BDP($C14,I$9),""),""),"") ->  | J14: =IFERROR(IF($C14<>"",IF(_xll.BDP($C14,J$9)<>"#N/A N/A",_xll.BDP($C14,J$9),""),""),"") ->  | K14: =IFERROR(IF($C14<>"",IF(_xll.BDP($C14,K$9)<>"#N/A N/A",_xll.BDP($C14,K$9),""),""),"") ->  | L14: =IFERROR(IF($C14<>"",IF(_xll.BDP($C14,L$9)<>"#N/A N/A",_xll.BDP($C14,L$9),""),""),"") ->  | M14: =IFERROR(IF($C14<>"",IF(_xll.BDP($C14,M$9)<>"#N/A N/A",_xll.BDP($C14,M$9),""),""),"") ->  | N14: =IFERROR(IF($C14<>"",IF(_xll.BDP($C14,N$9)<>"#N/A N/A",_xll.BDP($C14,N$9),""),""),"") ->  | O14: =IFERROR(IF($C14<>"",IF(_xll.BDP($C14,O$9)<>"#N/A N/A",_xll.BDP($C14,O$9),""),""),"") ->  | P14: =IFERROR(IF($C14<>"",IF(_xll.BDP($C14,P$9)<>"#N/A N/A",_xll.BDP($C14,P$9),""),""),"") -> 
C15: 002315 CH EQUITY | D15: =IFERROR(IF($C15<>"",_xll.BDP($C15,D$7),""),"") ->  | E15: =IFERROR(IF($C15<>"",_xll.BDP($C15,E$7),""),"") ->  | F15: =IFERROR(IF($C15<>"",_xll.BDP($C15,F$7),""),"") ->  | G15: =IFERROR(IF($C15<>"",_xll.BDP($C15,G$7),""),"") ->  | I15: =IFERROR(IF($C15<>"",IF(_xll.BDP($C15,I$9)<>"#N/A N/A",_xll.BDP($C15,I$9),""),""),"") ->  | J15: =IFERROR(IF($C15<>"",IF(_xll.BDP($C15,J$9)<>"#N/A N/A",_xll.BDP($C15,J$9),""),""),"") ->  | K15: =IFERROR(IF($C15<>"",IF(_xll.BDP($C15,K$9)<>"#N/A N/A",_xll.BDP($C15,K$9),""),""),"") ->  | L15: =IFERROR(IF($C15<>"",IF(_xll.BDP($C15,L$9)<>"#N/A N/A",_xll.BDP($C15,L$9),""),""),"") ->  | M15: =IFERROR(IF($C15<>"",IF(_xll.BDP($C15,M$9)<>"#N/A N/A",_xll.BDP($C15,M$9),""),""),"") ->  | N15: =IFERROR(IF($C15<>"",IF(_xll.BDP($C15,N$9)<>"#N/A N/A",_xll.BDP($C15,N$9),""),""),"") ->  | O15: =IFERROR(IF($C15<>"",IF(_xll.BDP($C15,O$9)<>"#N/A N/A",_xll.BDP($C15,O$9),""),""),"") ->  | P15: =IFERROR(IF($C15<>"",IF(_xll.BDP($C15,P$9)<>"#N/A N/A",_xll.BDP($C15,P$9),""),""),"") -> 
C16: 300413 CH EQUITY | D16: =IFERROR(IF($C16<>"",_xll.BDP($C16,D$7),""),"") ->  | E16: =IFERROR(IF($C16<>"",_xll.BDP($C16,E$7),""),"") ->  | F16: =IFERROR(IF($C16<>"",_xll.BDP($C16,F$7),""),"") ->  | G16: =IFERROR(IF($C16<>"",_xll.BDP($C16,G$7),""),"") ->  | I16: =IFERROR(IF($C16<>"",IF(_xll.BDP($C16,I$9)<>"#N/A N/A",_xll.BDP($C16,I$9),""),""),"") ->  | J16: =IFERROR(IF($C16<>"",IF(_xll.BDP($C16,J$9)<>"#N/A N/A",_xll.BDP($C16,J$9),""),""),"") ->  | K16: =IFERROR(IF($C16<>"",IF(_xll.BDP($C16,K$9)<>"#N/A N/A",_xll.BDP($C16,K$9),""),""),"") ->  | L16: =IFERROR(IF($C16<>"",IF(_xll.BDP($C16,L$9)<>"#N/A N/A",_xll.BDP($C16,L$9),""),""),"") ->  | M16: =IFERROR(IF($C16<>"",IF(_xll.BDP($C16,M$9)<>"#N/A N/A",_xll.BDP($C16,M$9),""),""),"") ->  | N16: =IFERROR(IF($C16<>"",IF(_xll.BDP($C16,N$9)<>"#N/A N/A",_xll.BDP($C16,N$9),""),""),"") ->  | O16: =IFERROR(IF($C16<>"",IF(_xll.BDP($C16,O$9)<>"#N/A N/A",_xll.BDP($C16,O$9),""),""),"") ->  | P16: =IFERROR(IF($C16<>"",IF(_xll.BDP($C16,P$9)<>"#N/A N/A",_xll.BDP($C16,P$9),""),""),"") -> 
C17: NFLX US EQUITY | D17: =IFERROR(IF($C17<>"",_xll.BDP($C17,D$7),""),"") ->  | E17: =IFERROR(IF($C17<>"",_xll.BDP($C17,E$7),""),"") ->  | F17: =IFERROR(IF($C17<>"",_xll.BDP($C17,F$7),""),"") ->  | G17: =IFERROR(IF($C17<>"",_xll.BDP($C17,G$7),""),"") ->  | I17: =IFERROR(IF($C17<>"",IF(_xll.BDP($C17,I$9)<>"#N/A N/A",_xll.BDP($C17,I$9),""),""),"") ->  | J17: =IFERROR(IF($C17<>"",IF(_xll.BDP($C17,J$9)<>"#N/A N/A",_xll.BDP($C17,J$9),""),""),"") ->  | K17: =IFERROR(IF($C17<>"",IF(_xll.BDP($C17,K$9)<>"#N/A N/A",_xll.BDP($C17,K$9),""),""),"") ->  | L17: =IFERROR(IF($C17<>"",IF(_xll.BDP($C17,L$9)<>"#N/A N/A",_xll.BDP($C17,L$9),""),""),"") ->  | M17: =IFERROR(IF($C17<>"",IF(_xll.BDP($C17,M$9)<>"#N/A N/A",_xll.BDP($C17,M$9),""),""),"") ->  | N17: =IFERROR(IF($C17<>"",IF(_xll.BDP($C17,N$9)<>"#N/A N/A",_xll.BDP($C17,N$9),""),""),"") ->  | O17: =IFERROR(IF($C17<>"",IF(_xll.BDP($C17,O$9)<>"#N/A N/A",_xll.BDP($C17,O$9),""),""),"") ->  | P17: =IFERROR(IF($C17<>"",IF(_xll.BDP($C17,P$9)<>"#N/A N/A",_xll.BDP($C17,P$9),""),""),"") -> 
C18: SSTK US EQUITY | D18: =IFERROR(IF($C18<>"",_xll.BDP($C18,D$7),""),"") ->  | E18: =IFERROR(IF($C18<>"",_xll.BDP($C18,E$7),""),"") ->  | F18: =IFERROR(IF($C18<>"",_xll.BDP($C18,F$7),""),"") ->  | G18: =IFERROR(IF($C18<>"",_xll.BDP($C18,G$7),""),"") ->  | I18: =IFERROR(IF($C18<>"",IF(_xll.BDP($C18,I$9)<>"#N/A N/A",_xll.BDP($C18,I$9),""),""),"") ->  | J18: =IFERROR(IF($C18<>"",IF(_xll.BDP($C18,J$9)<>"#N/A N/A",_xll.BDP($C18,J$9),""),""),"") ->  | K18: =IFERROR(IF($C18<>"",IF(_xll.BDP($C18,K$9)<>"#N/A N/A",_xll.BDP($C18,K$9),""),""),"") ->  | L18: =IFERROR(IF($C18<>"",IF(_xll.BDP($C18,L$9)<>"#N/A N/A",_xll.BDP($C18,L$9),""),""),"") ->  | M18: =IFERROR(IF($C18<>"",IF(_xll.BDP($C18,M$9)<>"#N/A N/A",_xll.BDP($C18,M$9),""),""),"") ->  | N18: =IFERROR(IF($C18<>"",IF(_xll.BDP($C18,N$9)<>"#N/A N/A",_xll.BDP($C18,N$9),""),""),"") ->  | O18: =IFERROR(IF($C18<>"",IF(_xll.BDP($C18,O$9)<>"#N/A N/A",_xll.BDP($C18,O$9),""),""),"") ->  | P18: =IFERROR(IF($C18<>"",IF(_xll.BDP($C18,P$9)<>"#N/A N/A",_xll.BDP($C18,P$9),""),""),"") -> 
C19: TME US EQUITY | D19: =IFERROR(IF($C19<>"",_xll.BDP($C19,D$7),""),"") ->  | E19: =IFERROR(IF($C19<>"",_xll.BDP($C19,E$7),""),"") ->  | F19: =IFERROR(IF($C19<>"",_xll.BDP($C19,F$7),""),"") ->  | G19: =IFERROR(IF($C19<>"",_xll.BDP($C19,G$7),""),"") ->  | I19: =IFERROR(IF($C19<>"",IF(_xll.BDP($C19,I$9)<>"#N/A N/A",_xll.BDP($C19,I$9),""),""),"") ->  | J19: =IFERROR(IF($C19<>"",IF(_xll.BDP($C19,J$9)<>"#N/A N/A",_xll.BDP($C19,J$9),""),""),"") ->  | K19: =IFERROR(IF($C19<>"",IF(_xll.BDP($C19,K$9)<>"#N/A N/A",_xll.BDP($C19,K$9),""),""),"") ->  | L19: =IFERROR(IF($C19<>"",IF(_xll.BDP($C19,L$9)<>"#N/A N/A",_xll.BDP($C19,L$9),""),""),"") ->  | M19: =IFERROR(IF($C19<>"",IF(_xll.BDP($C19,M$9)<>"#N/A N/A",_xll.BDP($C19,M$9),""),""),"") ->  | N19: =IFERROR(IF($C19<>"",IF(_xll.BDP($C19,N$9)<>"#N/A N/A",_xll.BDP($C19,N$9),""),""),"") ->  | O19: =IFERROR(IF($C19<>"",IF(_xll.BDP($C19,O$9)<>"#N/A N/A",_xll.BDP($C19,O$9),""),""),"") ->  | P19: =IFERROR(IF($C19<>"",IF(_xll.BDP($C19,P$9)<>"#N/A N/A",_xll.BDP($C19,P$9),""),""),"") -> 
C20: UMG NA EQUITY | D20: =IFERROR(IF($C20<>"",_xll.BDP($C20,D$7),""),"") ->  | E20: =IFERROR(IF($C20<>"",_xll.BDP($C20,E$7),""),"") ->  | F20: =IFERROR(IF($C20<>"",_xll.BDP($C20,F$7),""),"") ->  | G20: =IFERROR(IF($C20<>"",_xll.BDP($C20,G$7),""),"") ->  | I20: =IFERROR(IF($C20<>"",IF(_xll.BDP($C20,I$9)<>"#N/A N/A",_xll.BDP($C20,I$9),""),""),"") ->  | J20: =IFERROR(IF($C20<>"",IF(_xll.BDP($C20,J$9)<>"#N/A N/A",_xll.BDP($C20,J$9),""),""),"") ->  | K20: =IFERROR(IF($C20<>"",IF(_xll.BDP($C20,K$9)<>"#N/A N/A",_xll.BDP($C20,K$9),""),""),"") ->  | L20: =IFERROR(IF($C20<>"",IF(_xll.BDP($C20,L$9)<>"#N/A N/A",_xll.BDP($C20,L$9),""),""),"") ->  | M20: =IFERROR(IF($C20<>"",IF(_xll.BDP($C20,M$9)<>"#N/A N/A",_xll.BDP($C20,M$9),""),""),"") ->  | N20: =IFERROR(IF($C20<>"",IF(_xll.BDP($C20,N$9)<>"#N/A N/A",_xll.BDP($C20,N$9),""),""),"") ->  | O20: =IFERROR(IF($C20<>"",IF(_xll.BDP($C20,O$9)<>"#N/A N/A",_xll.BDP($C20,O$9),""),""),"") ->  | P20: =IFERROR(IF($C20<>"",IF(_xll.BDP($C20,P$9)<>"#N/A N/A",_xll.BDP($C20,P$9),""),""),"") -> 
D21: =IFERROR(IF($C21<>"",_xll.BDP($C21,D$7),""),"") ->  | E21: =IFERROR(IF($C21<>"",_xll.BDP($C21,E$7),""),"") ->  | F21: =IFERROR(IF($C21<>"",_xll.BDP($C21,F$7),""),"") ->  | G21: =IFERROR(IF($C21<>"",_xll.BDP($C21,G$7),""),"") ->  | I21: =IFERROR(IF($C21<>"",IF(_xll.BDP($C21,I$9)<>"#N/A N/A",_xll.BDP($C21,I$9),""),""),"") ->  | J21: =IFERROR(IF($C21<>"",IF(_xll.BDP($C21,J$9)<>"#N/A N/A",_xll.BDP($C21,J$9),""),""),"") ->  | K21: =IFERROR(IF($C21<>"",IF(_xll.BDP($C21,K$9)<>"#N/A N/A",_xll.BDP($C21,K$9),""),""),"") ->  | L21: =IFERROR(IF($C21<>"",IF(_xll.BDP($C21,L$9)<>"#N/A N/A",_xll.BDP($C21,L$9),""),""),"") ->  | M21: =IFERROR(IF($C21<>"",IF(_xll.BDP($C21,M$9)<>"#N/A N/A",_xll.BDP($C21,M$9),""),""),"") ->  | N21: =IFERROR(IF($C21<>"",IF(_xll.BDP($C21,N$9)<>"#N/A N/A",_xll.BDP($C21,N$9),""),""),"") ->  | O21: =IFERROR(IF($C21<>"",IF(_xll.BDP($C21,O$9)<>"#N/A N/A",_xll.BDP($C21,O$9),""),""),"") ->  | P21: =IFERROR(IF($C21<>"",IF(_xll.BDP($C21,P$9)<>"#N/A N/A",_xll.BDP($C21,P$9),""),""),"") -> 
D22: =IFERROR(IF($C22<>"",_xll.BDP($C22,D$7),""),"") ->  | E22: =IFERROR(IF($C22<>"",_xll.BDP($C22,E$7),""),"") ->  | F22: =IFERROR(IF($C22<>"",_xll.BDP($C22,F$7),""),"") ->  | G22: =IFERROR(IF($C22<>"",_xll.BDP($C22,G$7),""),"") ->  | I22: =IFERROR(IF($C22<>"",IF(_xll.BDP($C22,I$9)<>"#N/A N/A",_xll.BDP($C22,I$9),""),""),"") ->  | J22: =IFERROR(IF($C22<>"",IF(_xll.BDP($C22,J$9)<>"#N/A N/A",_xll.BDP($C22,J$9),""),""),"") ->  | K22: =IFERROR(IF($C22<>"",IF(_xll.BDP($C22,K$9)<>"#N/A N/A",_xll.BDP($C22,K$9),""),""),"") ->  | L22: =IFERROR(IF($C22<>"",IF(_xll.BDP($C22,L$9)<>"#N/A N/A",_xll.BDP($C22,L$9),""),""),"") ->  | M22: =IFERROR(IF($C22<>"",IF(_xll.BDP($C22,M$9)<>"#N/A N/A",_xll.BDP($C22,M$9),""),""),"") ->  | N22: =IFERROR(IF($C22<>"",IF(_xll.BDP($C22,N$9)<>"#N/A N/A",_xll.BDP($C22,N$9),""),""),"") ->  | O22: =IFERROR(IF($C22<>"",IF(_xll.BDP($C22,O$9)<>"#N/A N/A",_xll.BDP($C22,O$9),""),""),"") ->  | P22: =IFERROR(IF($C22<>"",IF(_xll.BDP($C22,P$9)<>"#N/A N/A",_xll.BDP($C22,P$9),""),""),"") -> 
D23: =IFERROR(IF($C23<>"",_xll.BDP($C23,D$7),""),"") ->  | E23: =IFERROR(IF($C23<>"",_xll.BDP($C23,E$7),""),"") ->  | F23: =IFERROR(IF($C23<>"",_xll.BDP($C23,F$7),""),"") ->  | G23: =IFERROR(IF($C23<>"",_xll.BDP($C23,G$7),""),"") ->  | I23: =IFERROR(IF($C23<>"",IF(_xll.BDP($C23,I$9)<>"#N/A N/A",_xll.BDP($C23,I$9),""),""),"") ->  | J23: =IFERROR(IF($C23<>"",IF(_xll.BDP($C23,J$9)<>"#N/A N/A",_xll.BDP($C23,J$9),""),""),"") ->  | K23: =IFERROR(IF($C23<>"",IF(_xll.BDP($C23,K$9)<>"#N/A N/A",_xll.BDP($C23,K$9),""),""),"") ->  | L23: =IFERROR(IF($C23<>"",IF(_xll.BDP($C23,L$9)<>"#N/A N/A",_xll.BDP($C23,L$9),""),""),"") ->  | M23: =IFERROR(IF($C23<>"",IF(_xll.BDP($C23,M$9)<>"#N/A N/A",_xll.BDP($C23,M$9),""),""),"") ->  | N23: =IFERROR(IF($C23<>"",IF(_xll.BDP($C23,N$9)<>"#N/A N/A",_xll.BDP($C23,N$9),""),""),"") ->  | O23: =IFERROR(IF($C23<>"",IF(_xll.BDP($C23,O$9)<>"#N/A N/A",_xll.BDP($C23,O$9),""),""),"") ->  | P23: =IFERROR(IF($C23<>"",IF(_xll.BDP($C23,P$9)<>"#N/A N/A",_xll.BDP($C23,P$9),""),""),"") -> 
D24: =IFERROR(IF($C24<>"",_xll.BDP($C24,D$7),""),"") ->  | E24: =IFERROR(IF($C24<>"",_xll.BDP($C24,E$7),""),"") ->  | F24: =IFERROR(IF($C24<>"",_xll.BDP($C24,F$7),""),"") ->  | G24: =IFERROR(IF($C24<>"",_xll.BDP($C24,G$7),""),"") ->  | I24: =IFERROR(IF($C24<>"",IF(_xll.BDP($C24,I$9)<>"#N/A N/A",_xll.BDP($C24,I$9),""),""),"") ->  | J24: =IFERROR(IF($C24<>"",IF(_xll.BDP($C24,J$9)<>"#N/A N/A",_xll.BDP($C24,J$9),""),""),"") ->  | K24: =IFERROR(IF($C24<>"",IF(_xll.BDP($C24,K$9)<>"#N/A N/A",_xll.BDP($C24,K$9),""),""),"") ->  | L24: =IFERROR(IF($C24<>"",IF(_xll.BDP($C24,L$9)<>"#N/A N/A",_xll.BDP($C24,L$9),""),""),"") ->  | M24: =IFERROR(IF($C24<>"",IF(_xll.BDP($C24,M$9)<>"#N/A N/A",_xll.BDP($C24,M$9),""),""),"") ->  | N24: =IFERROR(IF($C24<>"",IF(_xll.BDP($C24,N$9)<>"#N/A N/A",_xll.BDP($C24,N$9),""),""),"") ->  | O24: =IFERROR(IF($C24<>"",IF(_xll.BDP($C24,O$9)<>"#N/A N/A",_xll.BDP($C24,O$9),""),""),"") ->  | P24: =IFERROR(IF($C24<>"",IF(_xll.BDP($C24,P$9)<>"#N/A N/A",_xll.BDP($C24,P$9),""),""),"") -> 
D25: =IFERROR(IF($C25<>"",_xll.BDP($C25,D$7),""),"") ->  | E25: =IFERROR(IF($C25<>"",_xll.BDP($C25,E$7),""),"") ->  | F25: =IFERROR(IF($C25<>"",_xll.BDP($C25,F$7),""),"") ->  | G25: =IFERROR(IF($C25<>"",_xll.BDP($C25,G$7),""),"") ->  | I25: =IFERROR(IF($C25<>"",IF(_xll.BDP($C25,I$9)<>"#N/A N/A",_xll.BDP($C25,I$9),""),""),"") ->  | J25: =IFERROR(IF($C25<>"",IF(_xll.BDP($C25,J$9)<>"#N/A N/A",_xll.BDP($C25,J$9),""),""),"") ->  | K25: =IFERROR(IF($C25<>"",IF(_xll.BDP($C25,K$9)<>"#N/A N/A",_xll.BDP($C25,K$9),""),""),"") ->  | L25: =IFERROR(IF($C25<>"",IF(_xll.BDP($C25,L$9)<>"#N/A N/A",_xll.BDP($C25,L$9),""),""),"") ->  | M25: =IFERROR(IF($C25<>"",IF(_xll.BDP($C25,M$9)<>"#N/A N/A",_xll.BDP($C25,M$9),""),""),"") ->  | N25: =IFERROR(IF($C25<>"",IF(_xll.BDP($C25,N$9)<>"#N/A N/A",_xll.BDP($C25,N$9),""),""),"") ->  | O25: =IFERROR(IF($C25<>"",IF(_xll.BDP($C25,O$9)<>"#N/A N/A",_xll.BDP($C25,O$9),""),""),"") ->  | P25: =IFERROR(IF($C25<>"",IF(_xll.BDP($C25,P$9)<>"#N/A N/A",_xll.BDP($C25,P$9),""),""),"") -> 
D26: =IFERROR(IF($C26<>"",_xll.BDP($C26,D$7),""),"") ->  | E26: =IFERROR(IF($C26<>"",_xll.BDP($C26,E$7),""),"") ->  | F26: =IFERROR(IF($C26<>"",_xll.BDP($C26,F$7),""),"") ->  | G26: =IFERROR(IF($C26<>"",_xll.BDP($C26,G$7),""),"") ->  | I26: =IFERROR(IF($C26<>"",IF(_xll.BDP($C26,I$9)<>"#N/A N/A",_xll.BDP($C26,I$9),""),""),"") ->  | J26: =IFERROR(IF($C26<>"",IF(_xll.BDP($C26,J$9)<>"#N/A N/A",_xll.BDP($C26,J$9),""),""),"") ->  | K26: =IFERROR(IF($C26<>"",IF(_xll.BDP($C26,K$9)<>"#N/A N/A",_xll.BDP($C26,K$9),""),""),"") ->  | L26: =IFERROR(IF($C26<>"",IF(_xll.BDP($C26,L$9)<>"#N/A N/A",_xll.BDP($C26,L$9),""),""),"") ->  | M26: =IFERROR(IF($C26<>"",IF(_xll.BDP($C26,M$9)<>"#N/A N/A",_xll.BDP($C26,M$9),""),""),"") ->  | N26: =IFERROR(IF($C26<>"",IF(_xll.BDP($C26,N$9)<>"#N/A N/A",_xll.BDP($C26,N$9),""),""),"") ->  | O26: =IFERROR(IF($C26<>"",IF(_xll.BDP($C26,O$9)<>"#N/A N/A",_xll.BDP($C26,O$9),""),""),"") ->  | P26: =IFERROR(IF($C26<>"",IF(_xll.BDP($C26,P$9)<>"#N/A N/A",_xll.BDP($C26,P$9),""),""),"") -> 
D27: =IFERROR(IF($C27<>"",_xll.BDP($C27,D$7),""),"") ->  | E27: =IFERROR(IF($C27<>"",_xll.BDP($C27,E$7),""),"") ->  | F27: =IFERROR(IF($C27<>"",_xll.BDP($C27,F$7),""),"") ->  | G27: =IFERROR(IF($C27<>"",_xll.BDP($C27,G$7),""),"") ->  | I27: =IFERROR(IF($C27<>"",IF(_xll.BDP($C27,I$9)<>"#N/A N/A",_xll.BDP($C27,I$9),""),""),"") ->  | J27: =IFERROR(IF($C27<>"",IF(_xll.BDP($C27,J$9)<>"#N/A N/A",_xll.BDP($C27,J$9),""),""),"") ->  | K27: =IFERROR(IF($C27<>"",IF(_xll.BDP($C27,K$9)<>"#N/A N/A",_xll.BDP($C27,K$9),""),""),"") ->  | L27: =IFERROR(IF($C27<>"",IF(_xll.BDP($C27,L$9)<>"#N/A N/A",_xll.BDP($C27,L$9),""),""),"") ->  | M27: =IFERROR(IF($C27<>"",IF(_xll.BDP($C27,M$9)<>"#N/A N/A",_xll.BDP($C27,M$9),""),""),"") ->  | N27: =IFERROR(IF($C27<>"",IF(_xll.BDP($C27,N$9)<>"#N/A N/A",_xll.BDP($C27,N$9),""),""),"") ->  | O27: =IFERROR(IF($C27<>"",IF(_xll.BDP($C27,O$9)<>"#N/A N/A",_xll.BDP($C27,O$9),""),""),"") ->  | P27: =IFERROR(IF($C27<>"",IF(_xll.BDP($C27,P$9)<>"#N/A N/A",_xll.BDP($C27,P$9),""),""),"") -> 
D28: =IFERROR(IF($C28<>"",_xll.BDP($C28,D$7),""),"") ->  | E28: =IFERROR(IF($C28<>"",_xll.BDP($C28,E$7),""),"") ->  | F28: =IFERROR(IF($C28<>"",_xll.BDP($C28,F$7),""),"") ->  | G28: =IFERROR(IF($C28<>"",_xll.BDP($C28,G$7),""),"") ->  | I28: =IFERROR(IF($C28<>"",IF(_xll.BDP($C28,I$9)<>"#N/A N/A",_xll.BDP($C28,I$9),""),""),"") ->  | J28: =IFERROR(IF($C28<>"",IF(_xll.BDP($C28,J$9)<>"#N/A N/A",_xll.BDP($C28,J$9),""),""),"") ->  | K28: =IFERROR(IF($C28<>"",IF(_xll.BDP($C28,K$9)<>"#N/A N/A",_xll.BDP($C28,K$9),""),""),"") ->  | L28: =IFERROR(IF($C28<>"",IF(_xll.BDP($C28,L$9)<>"#N/A N/A",_xll.BDP($C28,L$9),""),""),"") ->  | M28: =IFERROR(IF($C28<>"",IF(_xll.BDP($C28,M$9)<>"#N/A N/A",_xll.BDP($C28,M$9),""),""),"") ->  | N28: =IFERROR(IF($C28<>"",IF(_xll.BDP($C28,N$9)<>"#N/A N/A",_xll.BDP($C28,N$9),""),""),"") ->  | O28: =IFERROR(IF($C28<>"",IF(_xll.BDP($C28,O$9)<>"#N/A N/A",_xll.BDP($C28,O$9),""),""),"") ->  | P28: =IFERROR(IF($C28<>"",IF(_xll.BDP($C28,P$9)<>"#N/A N/A",_xll.BDP($C28,P$9),""),""),"") -> 
D29: =IFERROR(IF($C29<>"",_xll.BDP($C29,D$7),""),"") ->  | E29: =IFERROR(IF($C29<>"",_xll.BDP($C29,E$7),""),"") ->  | F29: =IFERROR(IF($C29<>"",_xll.BDP($C29,F$7),""),"") ->  | G29: =IFERROR(IF($C29<>"",_xll.BDP($C29,G$7),""),"") ->  | I29: =IFERROR(IF($C29<>"",IF(_xll.BDP($C29,I$9)<>"#N/A N/A",_xll.BDP($C29,I$9),""),""),"") ->  | J29: =IFERROR(IF($C29<>"",IF(_xll.BDP($C29,J$9)<>"#N/A N/A",_xll.BDP($C29,J$9),""),""),"") ->  | K29: =IFERROR(IF($C29<>"",IF(_xll.BDP($C29,K$9)<>"#N/A N/A",_xll.BDP($C29,K$9),""),""),"") ->  | L29: =IFERROR(IF($C29<>"",IF(_xll.BDP($C29,L$9)<>"#N/A N/A",_xll.BDP($C29,L$9),""),""),"") ->  | M29: =IFERROR(IF($C29<>"",IF(_xll.BDP($C29,M$9)<>"#N/A N/A",_xll.BDP($C29,M$9),""),""),"") ->  | N29: =IFERROR(IF($C29<>"",IF(_xll.BDP($C29,N$9)<>"#N/A N/A",_xll.BDP($C29,N$9),""),""),"") ->  | O29: =IFERROR(IF($C29<>"",IF(_xll.BDP($C29,O$9)<>"#N/A N/A",_xll.BDP($C29,O$9),""),""),"") ->  | P29: =IFERROR(IF($C29<>"",IF(_xll.BDP($C29,P$9)<>"#N/A N/A",_xll.BDP($C29,P$9),""),""),"") -> 
B31: PASTE VALUES | C31: BILI US EQUITY | D31: Bilibili Inc | E31: 13.31 | F31: -0.43816 | G31: 5.52712946 | I31: 1.472934887 | J31: 1.26110279 | L31: 37.50267162
C32: 136 HK EQUITY | D32: China Ruyi Holdings Ltd | E32: 1.99 | F32: 0.020513 | G32: 21.88681111
C33: 9899 HK EQUITY | D33: Cloud Music Inc | E33: 85.75 | F33: 0.106452 | G33: 18.3263293 | I33: 1.040572689 | J33: 0.9375550492 | K33: 20.75154354 | L33: 11.03106422 | N33: 12.55130495 | O33: 25.03606354 | P33: 18.85380917
C34: DIDIY US EQUITY | D34: DiDi Global Inc | E34: 3.27 | F34: 0.028302 | G34: 15.8906321 | I34: 0.4042149995 | J34: 0.3521886625 | K34: 466.0786951 | L34: 13.65449422
C35: DEEZR FP EQUITY | D35: Deezer SA | E35: 2.77 | F35: -0.051045 | G35: 0.336935177 | I35: 0.6051916503 | J35: 0.5339159371
C36: 002315 CH EQUITY | D36: Focus Technology Co Ltd | E36: 32.4 | F36: 0.799001 | G36: 10.10904961 | I36: 4.636956567 | J36: 3.840250204 | K36: 18.45732369 | L36: 15.1866212 | N36: 15.80056085 | O36: 26.75474814 | P36: 21.42857143
C37: 300413 CH EQUITY | D37: Mango Excellent Media Co Ltd | E37: 28.31 | F37: -0.056962 | G37: 52.96010627 | I37: 2.635660601 | J37: 2.325915007 | K37: 5.932888192 | L37: 5.358436033 | N37: 14.81384338 | O37: 22.52187749 | P37: 18.92379679
C38: NFLX US EQUITY | D38: Netflix Inc | E38: 376.9 | F38: 0.278147 | G38: 167.0220105 | I38: 5.193263628 | J38: 4.59737307 | K38: 23.80149328 | L38: 18.75606444 | M38: 23.1272403 | N38: 20.64769222 | O38: 31.15906085 | P38: 24.30828765
C39: SSTK US EQUITY | D39: Shutterstock Inc | E39: 37.64 | F39: -0.286039 | G39: 1.358003021 | I39: 1.554151451 | J39: 1.477835902 | K39: 5.795999222 | L39: 5.692145993 | M39: 24.20959138 | N39: 12.21159638 | O39: 10.21715527 | P39: 9.894847529
C40: TME US EQUITY | D40: Tencent Music Entertainment Gr | E40: 6.18 | F40: -0.253623 | G40: 10.60535667 | I40: 2.012201047 | J40: 1.97579818 | K40: 9.224572787 | L40: 8.536746137 | M40: 9.726910071 | N40: 9.353159332 | O40: 12.55963217 | P40: 11.99511679
C41: UMG NA EQUITY | D41: Universal Music Group NV | E41: 24.8 | F41: 0.101733 | G41: 45.15814898 | I41: 4.368906824 | J41: 4.029224454 | K41: 21.7045581 | L41: 18.23931201 | M41: 24.72394313 | N41: 22.63588284 | O41: 29.80769231 | P41: 26.10526316
C51: ='P&L'!$H$3 -> SPOT US EQUITY | D51: =IFERROR(IF($C$10<>"",_xll.BDP($C51,D$7),'P&L'!$H$3),'P&L'!$H$3) -> SPOT US EQUITY | E51: 159.58 | F51: 1.021279 | G51: 30.88869774 | I51: 2.090930772 | J51: 1.789518007 | L51: 79.43448699 | N51: 223.0243296 | P51: 224.6741275
D53: Industry Average | E53: =IFERROR(AVERAGE(F31:F50),"...") -> 0.02257445455 | I53: =IFERROR(AVERAGE(I31:I50),"...") -> 2.392405434 | J53: 2.133115926 | K53: 71.46838424 | L53: 14.88417287 | M53: 20.44692122 | N53: 15.43057714 | O53: 22.57946139 | P53: 18.78709893
D54: Median | E54: =IFERROR(MEDIAN(F31:F50),"…") -> 0.020513 | I54: =IFERROR(MEDIAN(I31:I50),"…") -> 1.783176249 | J54: 1.726817041 | K54: 19.60443362 | L54: 13.65449422 | M54: 23.66841584 | N54: 14.81384338 | O54: 25.03606354 | P54: 18.92379679
D57: Δ to Average | E57: =IFERROR(F51-E$53,"") -> 0.9987045455 | I57: =IFERROR((I53-I$51)/I$51,"") -> 0.1441820391 | J57: 0.1920058457 | K57: =IFERROR((K53-K$51)/K$51,"") ->  | L57: =IFERROR((L53-L$51)/L$51,"") -> -0.8126232895 | N57: -0.9308121353 | P57: -0.9163806748
D58: Δ to Median | E58: =IFERROR((F51-E$54),"") -> 1.000766 | I58: -0.1471854196 | J58: -0.03503790739 | K58: =IFERROR((K54-K$51)/K$51,"") ->  | L58: -0.8281037024 | N58: -0.9335774558 | P58: -0.9157722476
D61: Up(Down)side to Average | E61: =AVERAGE(I57:J57) -> 0.1680939424
D62: Up(Down)side to Median | E62: =AVERAGE(I58:J58) -> -0.09111166347
D64: ="Bloom "&'P&L'!$H$3 -> Bloom SPOT US EQUITY | E64: =IFERROR(IF(_xll.BDP($C51,E$9)<>"#N/A N/A",_xll.BDP($C51,E$9),""),"#N/A BLOOM") -> #N/A BLOOM | F64: =IFERROR(IF(_xll.BDP($C51,F$9)<>"#N/A N/A",_xll.BDP($C51,F$9)/100,""),"#N/A BLOOM") -> #N/A BLOOM | G64: =IFERROR(IF(_xll.BDP($C51,G$9)<>"#N/A N/A",_xll.BDP($C51,G$9)/1000000000,""),"#N/A BLOOM") -> #N/A BLOOM | I64: =IFERROR(IF(_xll.BDP($C51,I$9)<>"#N/A N/A",_xll.BDP($C51,I$9),""),"#N/A BLOOM") -> #N/A BLOOM | J64: =IFERROR(IF(_xll.BDP($C51,J$9)<>"#N/A N/A",_xll.BDP($C51,J$9),""),"#N/A BLOOM") -> #N/A BLOOM | K64: =IFERROR(IF(_xll.BDP($C51,K$9)<>"#N/A N/A",_xll.BDP($C51,K$9),""),"#N/A BLOOM") -> #N/A BLOOM | L64: =IFERROR(IF(_xll.BDP($C51,L$9)<>"#N/A N/A",_xll.BDP($C51,L$9),""),"#N/A BLOOM") -> #N/A BLOOM | M64: =IFERROR(IF(_xll.BDP($C51,M$9)<>"#N/A N/A",_xll.BDP($C51,M$9),""),"#N/A BLOOM") -> #N/A BLOOM | N64: =IFERROR(IF(_xll.BDP($C51,N$9)<>"#N/A N/A",_xll.BDP($C51,N$9),""),"#N/A BLOOM") -> #N/A BLOOM | O64: =IFERROR(IF(_xll.BDP($C51,O$9)<>"#N/A N/A",_xll.BDP($C51,O$9),""),"#N/A BLOOM") -> #N/A BLOOM | P64: =IFERROR(IF(_xll.BDP($C51,P$9)<>"#N/A N/A",_xll.BDP($C51,P$9),""),"#N/A BLOOM") -> #N/A BLOOM
C81: spot us equity

Sheet SOTP
H2: Sum Of The Parts (SOTP) | M2: N° Of Shares | N2: =L32 -> 1025
F3: < Reset | M3: Current Market Price/Share | N3: =DCF!$P$3 -> 160
H4: ='P&L'!$H$3 -> SPOT US EQUITY | M4: Equity Value Per Share | N4: =L33 -> 164.8932683
M5: Upside / (Downside) | N5: =N4/N3-1 -> 0.03058292683
F8: (1) Operating Assets Valuation | G8: EV/Sales | I8: EV/EBITDA | K8: EV/NOPAT | M8: Estimated Value
G9: =YEAR(TODAY()) -> 2023 | H9: =G9+1 -> 2024 | I9: =YEAR(TODAY()) -> 2023 | J9: =I9+1 -> 2024 | K9: =YEAR(TODAY()) -> 2023 | L9: =K9+1 -> 2024 | M9: DCF/NAV | N9: Per Share
F10: C+ Group | M10: 5531 | N10: =IF(M10<>"",M10/$L$32,"") -> 5.396097561
F11: Havas | M11: 3393 | N11: 3.310243902
F12: Gameloft | M12: 267 | N12: 0.2604878049
F13: Solidarity | M13: -89 | N13: -0.08682926829
F14: Village | M14: 404 | N14: 0.3941463415
F15: New Initiatives | M15: 258 | N15: 0.2517073171
F16: Prisma | M16: 295 | N16: 0.287804878
F17: x | M17: 55555 | N17: 54.2
F18: x | M18: 55555 | N18: 54.2
F19: x | M19: 55555 | N19: 54.2
F20: x | M20: 27777.5 | N20: 27.1
F23: Corporate | M23: -1088 | N23: -1.061463415
F24: EV of Operating Assets | M24: =SUM(M10:M23) -> 203413.5 | N24: =SUM(N10:N23) -> 198.4521951
F26: (2) Stakes Valuation | G26: DCF/NAV | H26: Per Share | J26: (3) Total EV
F27: Telefonica | G27: 223 | H27: =IF(G27<>"",G27/$L$32,"") -> 0.2175609756 | J27: (+) Net Dept | L27: -1116 | M27: =IF(L27<>"",L27/$L$32,"") -> -1.088780488
F28: UMG | G28: 5645 | H28: 5.507317073 | J28: (+) Other Liabilities | L28: -1881 | M28: =IF(L28<>"",L28/$L$32,"") -> -1.835121951
F29: Mediaset | G29: 351 | H29: 0.3424390244 | J29: Equity Value (Pre-Discount) | L29: =SUM(M24,G43,L27:L28) -> 211269.5 | M29: =IF(L29<>"",L29/$L$32,"") -> 206.1165854
F30: Telecom italia | G30: 1143 | H30: 1.115121951 | J30: Holdco Discount | L30: 0.2
F31: Banijay | G31: 732 | H31: 0.7141463415 | J31: Equity Value | L31: =L29-L30*L29 -> 169015.6 | M31: =IF(L31<>"",L31/$L$32,"") -> 164.8932683
F32: Lagardere | G32: 1644 | H32: 1.603902439 | J32: N° of Shares | L32: 1025
F33: Multichoice / Other | G33: 428 | H33: 0.4175609756 | J33: Equity Per Share | L33: =L31/L32 -> 164.8932683
F34: Prisa | G34: 37 | H34: 0.03609756098
F35: Editis | G35: 650 | H35: 0.6341463415
F43: Value of Stakes | G43: =SUM(G27:G42) -> 10853 | H43: 10.58829268

Sheet FINAL
B8: Final Valuation
B9: Method | C9: Ratio / Weight | E9: Equity Value Per Share | F9: Upside / (Downside
B10: Market Cap | E10: =DCF!$P$3 -> 160
B12: (1) Discouted Cash Flows (DCF) | C12: 75 | D12: =C12/SUM($C$12:$C$14) -> 0.75 | E12: =DCF!$P$4 -> 132.4345703 | F12: =DCF!$P$5 -> -0.1722839356
B13: (2) Relative Value (RV) | C13: 15 | D13: =C13/SUM($C$12:$C$14) -> 0.15 | E13: =DCF!$P$3+DCF!$P$3*RV!P3 -> 145.4221338 | F13: =RV!$P$3 -> -0.09111166347
B14: (3) Sum Of The Parts (SOTP) | C14: 10 | D14: 0.1 | E14: =SOTP!$N$4 -> 164.8932683 | F14: =SOTP!$N$5 -> 0.03058292683
B15: Final Value | D15: 1 | E15: =$D$12*E12+$D$13*E13+$D$14*E14 -> 137.6285746 | F15: =$D$12*F12+$D$13*F13+$D$14*F14 -> -0.1398214085
